bitfinex-derivatives/quotes_SOLF0:USTF0_20250312
["timestamp","ask_amount","ask_price","bid_price","bid_amount"]
[1741779880363,0.05249856,126.33,126.3,0.05533991]
[1741779880552,11.68032587,126.32,126.3,0.05533991]
[1741779881158,19.59842587,126.32,126.3,7.97433991]
[1741779881766,11.68032587,126.32,126.3,7.97433991]
[1741779882062,0.05249856,126.33,126.3,0.05533991]
[1741779882465,0.05249856,126.33,126.32,7.9178]
[1741779883054,0.05249856,126.33,126.31,7.918]
[1741779883563,7.96999856,126.33,126.3,7.97403991]
[1741779883762,0.05249856,126.33,126.3,0.05533991]
[1741779884058,11.68032587,126.37,126.33,7.9167]
[1741779884262,11.68032587,126.37,126.31,11.68032587]
[1741779884463,11.68032587,126.37,126.32,2.0939]
[1741779884655,11.68032587,126.37,126.35,7.9158]
[1741779884859,11.68032587,126.37,126.32,13.77422587]
[1741779885063,11.73463905,126.37,126.35,0.05612382]
[1741779885264,11.73463905,126.37,126.36,7.9153]
[1741779886362,0.05431318,126.37,126.35,0.05612382]
[1741779886564,0.05431318,126.37,126.35,7.97172382]
[1741779887464,11.73463905,126.37,126.35,7.97172382]
[1741779887855,11.68032587,126.36,126.35,0.05612382]
[1741779891760,11.73463905,126.37,126.35,7.97202382]
[1741779892364,0.05431318,126.37,126.36,7.9153]
[1741779894066,0.05431318,126.37,126.35,7.97172382]
[1741779895161,0.05431318,126.37,126.35,0.05612382]
[1741779895367,0.05431318,126.37,126.36,7.9153]
[1741779895568,0.05431318,126.37,126.35,0.05612382]
[1741779895964,0.05431318,126.37,126.35,7.97162382]
[1741779897968,7.96901318,126.37,126.35,7.97162382]
[1741779900171,0.05431318,126.37,126.35,7.97162382]
[1741779900375,0.05431318,126.37,126.36,7.9153]
[1741779900870,0.05431318,126.37,126.35,7.97172382]
[1741779901574,0.05431318,126.37,126.36,7.9153]
[1741779906168,0.05431318,126.37,126.36,19.59562587]
[1741779906976,11.68032587,126.41,126.36,11.68032587]
[1741779907170,11.68032587,126.41,126.4,7.9128]
[1741779907574,11.68032587,126.42,126.41,7.9121]
[1741779907774,7.9111,126.43,126.41,7.9121]
[1741779908079,11.68032587,126.42,126.41,7.9121]
[1741779908270,19.59182587,126.42,126.41,0.05747912]
[1741779908471,7.9115,126.42,126.41,0.05747912]
[1741779908674,11.68032587,126.42,126.41,0.05747912]
[1741779908874,19.59182587,126.42,126.41,0.05747912]
[1741779909076,11.68032587,126.42,126.41,0.05747912]
[1741779910074,11.73170439,126.43,126.41,7.96907912]
[1741779910376,0.05137852,126.43,126.41,11.73780499]
[1741779910576,11.68032587,126.46,126.41,11.73780499]
[1741779910878,7.9103,126.44,126.41,19.64960499]
[1741779911279,19.59182587,126.42,126.41,0.05747912]
[1741779911978,7.9145,126.38,126.35,2.0393]
[1741779912171,19.59482587,126.38,126.35,2.0393]
[1741779912574,11.68032587,126.38,126.35,9.9549]
[1741779912775,11.68032587,126.38,126.35,2.0393]
[1741779912974,11.73705566,126.38,126.35,0.05294391]
[1741779913178,19.65165566,126.38,126.35,0.05294391]
[1741779913682,7.9153,126.36,126.35,0.05294391]
[1741779914078,11.68032587,126.37,126.35,0.05294391]
[1741779914272,11.73705566,126.38,126.36,7.9153]
[1741779914470,11.73705566,126.38,126.35,0.05294391]
[1741779914883,19.65145566,126.38,126.35,7.96854391]
[1741779915378,11.73705566,126.38,126.35,0.05294391]
[1741779915579,11.73705566,126.38,126.36,7.9148]
[1741779916583,19.65115566,126.38,126.36,7.9148]
[1741779917085,11.73705566,126.38,126.36,7.9148]
[1741779917986,11.73705566,126.38,126.35,0.05294391]
[1741779918585,11.73705566,126.38,126.36,7.915]
[1741779919885,11.68032587,126.37,126.35,0.05294391]
[1741779920084,11.68032587,126.36,126.35,0.05294391]
[1741779920581,19.59562587,126.36,126.35,0.05294391]
[1741779920782,43.02032587,126.36,126.33,10.39]
[1741779920986,11.68032587,126.34,126.26,132.46402087]
[1741779921190,11.68032587,126.32,126.26,132.46402087]
[1741779921685,11.68032587,126.31,126.26,132.46402087]
[1741779921887,11.68032587,126.31,126.3,0.05045775]
[1741779922087,11.68032587,126.31,126.3,7.919]
[1741779922288,11.68032587,126.31,126.29,0.06065402]
[1741779922689,11.68032587,126.3,126.29,0.06065402]
[1741779923091,11.68032587,126.31,126.29,0.06065402]
[1741779923489,11.68032587,126.31,126.3,7.9188]
[1741779924292,11.68032587,126.31,126.29,0.06065402]
[1741779924492,11.68032587,126.3,126.29,0.06065402]
[1741779925794,11.68032587,126.3,126.29,7.98035402]
[1741779926288,11.68032587,126.3,126.29,0.06065402]
[1741779926493,11.68032587,126.3,126.27,17.04]
[1741779926693,11.68032587,126.28,126.27,17.04]
[1741779926987,11.68032587,126.28,126.27,7.9209]
[1741779927391,11.68032587,126.29,126.27,7.9209]
[1741779927693,11.74042359,126.29,126.27,7.9209]
[1741779928086,11.74042359,126.29,126.26,7.97792393]
[1741779928291,11.68032587,126.28,126.26,7.97792393]
[1741779928791,11.74042359,126.29,126.26,0.05672393]
[1741779929193,11.68032587,126.27,126.26,0.05672393]
[1741779929389,11.68032587,126.27,126.21,4.2023]
[1741779929390,43.02032587,126.27,126.21,4.2023]
[1741779929697,31.34,126.27,126.25,17.95]
[1741779929893,7.9221,126.26,126.25,17.95]
[1741779930197,31.34,126.27,126.18,2.1706]
[1741779930392,11.68032587,126.22,126.21,0.05954159]
[1741779930787,43.07347269,126.24,126.21,0.05954159]
[1741779931098,0.05314682,126.24,126.22,7.9238]
[1741779931294,0.05314682,126.24,126.22,11.68032587]
[1741779931497,0.05314682,126.24,126.23,7.9234]
[1741779932300,0.05314682,126.24,126.22,12.1296]
[1741779932896,0.05314682,126.24,126.22,4.2059]
[1741779933495,0.05314682,126.24,126.22,12.1294]
[1741779933698,0.05314682,126.24,126.22,4.2059]
[1741779933997,0.05314682,126.24,126.23,7.9234]
[1741779934394,0.05314682,126.24,126.22,4.2059]
[1741779935399,0.05314682,126.24,126.22,12.1296]
[1741779935799,0.05314682,126.24,126.22,7.9237]
[1741779936099,0.05314682,126.24,126.21,0.05954159]
[1741779936400,18.35862412,126.24,126.21,0.05954159]
[1741779936598,49.69862412,126.24,126.21,0.05954159]
[1741779936897,7.9241,126.22,126.21,0.05954159]
[1741779938592,18.3054773,126.22,126.08,15.8654]
[1741779938792,18.3054773,126.22,126.06,168.3054773]
[1741779938793,49.6454773,126.24,126.15,53.7489773]
[1741779939902,0.05633003,126.21,126.18,0.05616941]
[1741779940101,0.05633003,126.21,126.18,31.39616941]
[1741779941109,0.05633003,126.21,126.2,7.9253]
[1741779944308,0.05633003,126.21,126.19,7.9255]
[1741779944504,0.05633003,126.21,126.18,31.39616941]
[1741779944900,0.05633003,126.21,126.2,7.9253]
[1741779946409,0.05633003,126.21,126.19,7.9254]
[1741779946613,7.98143003,126.21,126.19,7.9254]
[1741779946915,0.05633003,126.21,126.18,0.05616941]
[1741779947209,7.98133003,126.21,126.18,7.98236941]
[1741779947912,7.9254,126.2,126.18,7.98236941]
[1741779948112,0.05633003,126.21,126.18,0.05616941]
[1741779948616,7.9258,126.2,126.18,0.05616941]
[1741779949315,7.98133003,126.21,126.18,7.98226941]
[1741779949516,0.05633003,126.21,126.18,7.98226941]
[1741779949719,0.05633003,126.21,126.19,7.9255]
[1741779950012,0.05633003,126.21,126.18,0.05616941]
[1741779950314,0.05633003,126.21,126.19,7.9255]
[1741779950817,7.98143003,126.21,126.19,7.9255]
[1741779951218,0.05633003,126.21,126.18,0.05616941]
[1741779951915,0.05633003,126.21,126.2,7.9253]
[1741779953422,7.9259,126.19,126.18,0.05616941]
[1741779955419,7.9275,126.17,126.12,2.0647]
[1741779955625,7.9275,126.17,126.13,39.2694]
[1741779955825,7.9275,126.17,126.13,7.9294]
[1741779956120,49.6454773,126.2,126.13,7.9294]
[1741779956317,7.928,126.16,126.13,7.9294]
[1741779956518,0.0502109,126.18,126.15,0.05275725]
[1741779956714,7.9278,126.17,126.15,0.05275725]
[1741779956918,0.0502109,126.18,126.15,0.05275725]
[1741779957414,18.3556882,126.18,126.15,0.05275725]
[1741779957823,7.9278,126.16,126.15,0.05275725]
[1741779959229,18.3556882,126.18,126.11,7.9306]
[1741779959425,18.3054773,126.18,126.11,7.9306]
[1741779959629,18.3054773,126.18,126.1,31.34]
[1741779959832,18.3054773,126.18,126.12,7.93]
[1741779960433,0.0539522,126.16,126.14,0.05709117]
[1741779960628,18.3594295,126.16,126.02,911.33154059]
[1741779960834,18.3054773,126.15,126.06,24.4979773]
[1741779961028,18.3054773,126.15,126.08,18.3054773]
[1741779961230,49.6454773,126.17,126.09,31.34]
[1741779961734,0.0601613,126.14,126.12,0.05062168]
[1741779961933,0.0601613,126.14,126.12,31.39062168]
[1741779962131,0.0601613,126.14,126.12,39.32042168]
[1741779962431,0.0601613,126.14,126.12,31.39062168]
[1741779962628,0.0601613,126.14,126.13,7.9297]
[1741779963533,18.3054773,126.19,126.14,7.929]
[1741779963927,7.9275,126.17,126.14,7.929]
[1741779964122,18.3054773,126.19,126.13,7.9293]
[1741779964428,18.3054773,126.19,126.12,31.34]
[1741779964630,0.05568044,126.17,126.15,0.05255495]
[1741779965029,0.05568044,126.17,126.16,7.9278]
[1741779965435,0.05568044,126.17,126.15,0.05255495]
[1741779966535,7.98338044,126.17,126.15,0.05255495]
[1741779967035,7.9278,126.16,126.15,0.05255495]
[1741779969137,26.28895774,126.17,126.15,0.05255495]
[1741779969531,18.36115774,126.17,126.15,0.05255495]
[1741779969932,18.36115774,126.17,126.1,31.34]
[1741779970127,18.3054773,126.14,126.07,6.1482]
[1741779970334,7.9306,126.12,126.09,7.9319]
[1741779970733,18.3054773,126.14,126.08,39.2725]
[1741779971034,7.9311,126.11,126.1,0.0564238]
[1741779971440,7.9324,126.09,126.06,7.9338]
[1741779971641,7.9324,126.09,126.05,31.34]
[1741779971836,7.9319,126.1,126.07,7.9333]
[1741779972043,7.9319,126.1,126.05,31.34]
[1741779972339,18.3054773,126.12,126.05,31.34]
[1741779972540,0.05244104,126.09,126.06,0.05394361]
[1741779972939,0.05244104,126.09,126.08,7.9328]
[1741779973235,0.05244104,126.09,126.08,39.2728]
[1741779973840,0.05244104,126.09,126.07,7.9333]
[1741779974038,0.05244104,126.09,126.06,0.05394361]
[1741779974347,0.05244104,126.09,126.08,7.9328]
[1741779975645,18.35791834,126.09,126.06,0.05394361]
[1741779975847,0.05244104,126.09,126.06,0.05394361]
[1741779976035,0.05244104,126.09,126.06,31.39394361]
[1741779976244,26.2332773,126.16,126.13,7.9293]
[1741779976550,18.3054773,126.14,126.08,31.34]
[1741779976950,7.93,126.13,126.08,31.34]
[1741779977144,18.3054773,126.14,126.08,31.34]
[1741779977344,0.05919494,126.12,126.09,7.98401479]
[1741779977645,0.05919494,126.12,126.09,0.05211479]
[1741779978049,7.98989494,126.12,126.09,0.05211479]
[1741779978250,0.05919494,126.12,126.09,0.05211479]
[1741779978446,18.36467224,126.12,126.09,0.05211479]
[1741779979345,7.931,126.11,126.09,0.05211479]
[1741779979546,18.36467224,126.12,126.09,0.05211479]
[1741779980050,18.3054773,126.1,126.09,0.05211479]
[1741779980455,26.2370773,126.1,126.09,0.05211479]
[1741779981259,26.2370773,126.1,126.03,6.1482]
[1741779981260,7.9342,126.06,126.03,6.1482]
[1741779981552,18.3054773,126.08,126.03,6.1482]
[1741779981749,26.2385773,126.08,126.04,7.9351]
[1741779982148,18.3054773,126.08,126.03,6.1482]
[1741779982348,0.05870654,126.07,126.05,0.05545486]
[1741779983852,0.05870654,126.07,126.05,7.99005486]
[1741779984355,0.05870654,126.07,126.05,0.05545486]
[1741779985658,7.99260654,126.07,126.05,0.05545486]
[1741779986156,0.05870654,126.07,126.05,0.05545486]
[1741779986556,7.9341,126.06,126.05,0.05545486]
[1741779987661,7.9355,126.04,125.99,6.3015]
[1741779987959,18.3054773,126.06,126.0,7.9376]
[1741779988259,18.3054773,126.06,125.99,6.3015]
[1741779988453,18.3054773,126.06,126.02,7.9363]
[1741779988654,18.3054773,126.06,125.99,37.6415]
[1741779988955,0.05749644,126.05,126.03,0.05265755]
[1741779989760,0.05749644,126.05,126.03,7.98825755]
[1741779990155,0.05749644,126.05,126.04,7.9354]
[1741779991349,18.3054773,126.1,126.03,0.05265755]
[1741779991552,18.3054773,126.1,126.07,7.933]
[1741779991759,26.2373773,126.1,126.05,31.34]
[1741779991960,26.2373773,126.1,126.07,7.9332]
[1741779992155,18.3054773,126.12,126.05,31.34]
[1741779992553,0.05347234,126.1,126.07,0.05228656]
[1741779993456,18.3054773,126.16,126.08,49.6454773]
[1741779993658,18.3054773,126.18,126.1,18.3054773]
[1741779993864,18.3054773,126.18,126.11,31.34]
[1741779994162,18.3054773,126.18,126.12,7.93]
[1741779994363,18.3054773,126.16,126.11,31.34]
[1741779994657,7.9287,126.15,126.11,39.2709]
[1741779994855,7.97890989,126.15,126.12,0.05585335]
[1741779995364,7.9292,126.14,126.12,0.05585335]
[1741779995664,18.3054773,126.14,126.12,0.05585335]
[1741779995860,18.3054773,126.14,126.06,31.34]
[1741779996061,7.9318,126.1,126.07,7.9332]
[1741779996362,7.9318,126.1,126.06,31.34]
[1741779996564,18.3054773,126.12,126.06,31.34]
[1741779996767,18.3054773,126.12,126.06,33.354]
[1741779996961,31.34,126.13,126.06,51.6594773]
[1741779997265,0.0593509,126.1,126.09,7.9316]
[1741779997466,7.9314,126.11,126.06,51.6594773]
[1741779997766,0.05639654,126.11,126.08,7.99020109]
[1741779998461,0.05639654,126.11,126.08,0.05790109]
[1741779999167,7.9322,126.09,126.08,0.05790109]
[1741779999560,0.05639654,126.11,126.08,0.05790109]
[1741779999760,7.9319,126.1,126.08,0.05790109]
[1741779999966,0.05639654,126.11,126.08,0.05790109]
[1741780000161,7.9322,126.1,126.08,0.05790109]
[1741780000367,0.05639654,126.11,126.08,0.05790109]
[1741780000761,7.932,126.1,126.08,0.05790109]
[1741780001067,0.05639654,126.11,126.08,0.05790109]
[1741780001266,0.05639654,126.11,126.08,7.99040109]
[1741780001767,0.05639654,126.11,126.08,0.05790109]
[1741780003061,7.98769654,126.11,126.08,7.99040109]
[1741780003261,0.05639654,126.11,126.08,0.05790109]
[1741780003461,0.05639654,126.11,126.1,7.9316]
[1741780003662,0.05639654,126.11,126.08,0.05790109]
[1741780004367,7.9317,126.1,126.08,0.05790109]
[1741780005268,7.9317,126.1,126.08,7.99070109]
[1741780005863,7.98749654,126.11,126.09,7.9321]
[1741780006063,0.05639654,126.11,126.08,0.05790109]
[1741780006561,7.9316,126.1,126.08,7.99040109]
[1741780007067,0.05639654,126.11,126.08,7.99040109]
[1741780007068,0.05639654,126.11,126.08,0.05790109]
[1741780007270,7.9319,126.1,126.08,0.05790109]
[1741780007771,7.9319,126.1,126.08,7.99040109]
[1741780007969,7.98759654,126.11,126.08,0.05790109]
[1741780008270,0.05639654,126.11,126.08,7.99050109]
[1741780009768,31.39639654,126.11,126.08,0.05790109]
[1741780010771,31.39639654,126.11,126.08,7.99070109]
[1741780011069,31.39639654,126.11,126.08,0.05790109]
[1741780011470,39.32769654,126.11,126.08,7.99050109]
[1741780012666,7.98769654,126.11,126.08,7.99050109]
[1741780012867,7.9319,126.1,126.08,0.05790109]
[1741780013971,7.9322,126.09,126.08,0.05790109]
[1741780015175,7.932,126.1,126.08,0.05790109]
[1741780015371,0.05639654,126.11,126.08,0.05790109]
[1741780015776,7.9322,126.09,126.08,0.05790109]
[1741780016772,7.9319,126.1,126.08,0.05790109]
[1741780017278,7.9319,126.1,126.08,7.99060109]
[1741780018076,0.05639654,126.11,126.08,7.99060109]
[1741780018372,7.98769654,126.11,126.09,7.9319]
[1741780018575,0.05639654,126.11,126.08,0.05790109]
[1741780018876,0.05639654,126.11,126.09,7.9322]
[1741780019973,0.05639654,126.11,126.08,0.05790109]
[1741780020374,18.3054773,126.16,126.08,0.05790109]
[1741780020674,18.3054773,126.16,126.07,31.34]
[1741780020875,7.93,126.13,126.1,7.9312]
[1741780021076,18.3054773,126.16,126.07,31.34]
[1741780021374,7.9298,126.13,126.11,7.9307]
[1741780021670,7.98783243,126.13,126.1,0.05077685]
[1741780022674,0.05803243,126.13,126.11,7.9307]
[1741780022973,0.05803243,126.13,126.1,31.37077685]
[1741780023176,238.0,126.17,126.11,2.1092]
[1741780023474,18.3054773,126.18,126.11,4.1686]
[1741780024177,7.9276,126.17,126.11,4.1686]
[1741780024374,0.05186585,126.16,126.13,0.05506503]
[1741780024575,0.05186585,126.16,126.13,31.37506503]
[1741780025071,18.35734315,126.16,126.13,0.05506503]
[1741780025267,18.3054773,126.14,126.08,7.9327]
[1741780025669,18.3054773,126.12,126.08,7.9327]
[1741780026072,7.9313,126.11,126.08,7.9327]
[1741780026475,7.98609667,126.11,126.08,7.98337093]
[1741780028281,0.05479667,126.11,126.08,0.05067093]
[1741780029083,7.9317,126.1,126.08,0.05067093]
[1741780029274,0.05479667,126.11,126.08,0.05067093]
[1741780029675,18.3054773,126.1,126.08,0.05067093]
[1741780029876,18.3054773,126.1,126.01,37.6224]
[1741780030076,7.9345,126.06,126.02,7.9363]
[1741780030378,18.3054773,126.07,126.01,6.3024]
[1741780030684,26.2394773,126.07,126.03,7.9358]
[1741780030886,18.3054773,126.07,126.03,7.9358]
[1741780031078,0.0597419,126.06,126.04,0.05495887]
[1741780031279,7.9347,126.05,126.04,0.05495887]
[1741780031476,0.0597419,126.06,125.99,31.67709684]
[1741780031687,18.3054773,126.07,125.99,31.67709684]
[1741780031887,18.3054773,126.07,126.0,7.9376]
[1741780032187,18.3054773,126.07,125.99,31.67709684]
[1741780032480,18.3054773,126.07,126.01,7.9371]
[1741780032686,0.05411662,126.04,126.02,0.05521942]
[1741780032887,31.37411662,126.04,126.02,0.05521942]
[1741780033387,7.936,126.03,126.02,0.05521942]
[1741780034188,0.05411662,126.04,126.02,0.05521942]
[1741780034589,0.05411662,126.04,126.03,7.936]
[1741780035590,18.3054773,126.09,126.05,7.9345]
[1741780035789,2.038,126.11,126.03,4.0986]
[1741780035790,51.6634773,126.11,126.03,4.0986]
[1741780036091,7.932,126.1,126.06,7.9336]
[1741780036586,0.05063572,126.09,126.07,7.98611003]
[1741780037284,0.05063572,126.09,126.08,7.9328]
[1741780037587,0.05063572,126.09,126.07,0.05291003]
[1741780038586,0.05063572,126.09,126.07,7.98611003]
[1741780040394,0.05063572,126.09,126.08,7.9328]
[1741780041995,0.05063572,126.09,126.08,39.2528]
[1741780045091,18.3054773,126.15,126.08,31.32]
[1741780045390,18.3054773,126.17,126.09,4.2778]
[1741780045697,7.9281,126.16,126.09,4.2778]
[1741780046295,0.05181752,126.14,126.13,7.9292]
[1741780048799,0.05181752,126.14,126.11,31.3718946]
[1741780049603,0.05181752,126.14,126.13,7.9297]
[1741780054911,49.6254773,126.19,126.13,7.9294]
[1741780055312,7.9283,126.16,126.13,7.9294]
[1741780055716,7.9283,126.16,126.11,31.32]
[1741780056017,0.05753545,126.15,126.14,7.9291]
[1741780056413,0.05753545,126.15,126.13,7.9294]
[1741780056813,7.98603545,126.15,126.12,0.05586663]
[1741780057010,0.05753545,126.15,126.12,0.05586663]
[1741780057917,0.05753545,126.15,126.13,7.9296]
[1741780058120,7.98633545,126.15,126.12,0.05586663]
[1741780058416,7.98633545,126.15,126.12,7.98566663]
[1741780058618,0.05753545,126.15,126.12,0.05586663]
[1741780059118,0.05753545,126.15,126.14,7.9291]
[1741780059308,0.05753545,126.15,126.14,39.2291]
[1741780059620,18.3054773,126.21,126.14,31.3]
[1741780060217,18.3054773,126.21,126.15,7.9281]
[1741780060409,18.3054773,126.21,126.14,31.3]
[1741780060816,7.9275,126.17,126.16,0.05434859]
[1741780061718,7.9269,126.18,126.16,0.05434859]
[1741780063115,7.9272,126.17,126.16,0.05434859]
[1741780063309,0.05386043,126.19,126.16,0.05434859]
[1741780063712,7.9269,126.18,126.16,0.05434859]
[1741780064015,0.05386043,126.19,126.16,0.05434859]
[1741780064616,0.05386043,126.19,126.17,7.9269]
[1741780064817,0.05386043,126.19,126.16,0.05434859]
[1741780065018,0.05386043,126.19,126.17,31.3]
[1741780065222,0.05386043,126.19,126.18,7.9266]
[1741780065414,0.05386043,126.19,126.17,31.3]
[1741780065615,0.05386043,126.19,126.18,7.9266]
[1741780066219,0.05386043,126.19,126.17,39.2267]
[1741780068321,0.05386043,126.19,126.18,7.9266]
[1741780069618,18.3054773,126.25,126.17,31.28]
[1741780069817,18.3054773,126.25,126.21,7.9244]
[1741780070020,7.9231,126.24,126.21,7.9244]
[1741780070320,18.3054773,126.25,126.21,7.9244]
[1741780070824,0.05436498,126.24,126.22,0.05563259]
[1741780071323,18.3054773,126.23,126.15,4.0519]
[1741780071523,18.3054773,126.21,126.16,31.28]
[1741780071923,7.9271,126.18,126.16,31.28]
[1741780072223,7.9271,126.18,126.15,43.2601]
[1741780072522,7.98769976,126.18,126.15,43.31662284]
[1741780073024,0.06059976,126.18,126.15,35.38842284]
[1741780073826,0.06059976,126.18,126.17,7.9272]
[1741780074123,49.5854773,126.25,126.16,18.3054773]
[1741780074323,7.9244,126.22,126.19,7.9255]
[1741780074718,49.5854773,126.25,126.19,7.9255]
[1741780074920,7.9251,126.21,126.18,39.2064]
[1741780075227,18.36088625,126.23,126.18,31.28]
[1741780075420,18.36088625,126.23,126.18,31.33986269]
[1741780075617,7.9251,126.21,126.18,39.26636269]
[1741780075827,18.36088625,126.23,126.18,39.26636269]
[1741780076926,7.9243,126.22,126.19,7.9256]
[1741780077525,18.36088625,126.23,126.18,31.33986269]
[1741780077721,0.05540895,126.23,126.18,31.33986269]
[1741780078126,7.9243,126.22,126.19,7.9257]
[1741780078325,0.05540895,126.23,126.18,31.33986269]
[1741780079128,7.9242,126.22,126.19,7.9255]
[1741780079631,7.97910895,126.23,126.21,7.9247]
[1741780079924,7.97910895,126.23,126.18,31.28]
[1741780080132,7.97910895,126.23,126.21,0.05191098]
[1741780080520,0.05540895,126.23,126.21,0.05191098]
[1741780081428,7.9241,126.22,126.21,0.05191098]
[1741780083231,7.9264,126.19,126.15,35.3119]
[1741780083427,18.3054773,126.21,126.15,35.3119]
[1741780083620,18.3054773,126.21,126.15,43.2401]
[1741780083826,7.9272,126.17,126.15,11.9801]
[1741780084026,18.3054773,126.21,126.15,11.9801]
[1741780084027,18.3054773,126.21,126.15,4.0519]
[1741780084222,18.3054773,126.21,126.17,0.05208692]
[1741780084432,0.05301104,126.19,126.17,0.05208692]
[1741780085232,0.05301104,126.19,126.18,7.9266]
[1741780085824,0.05301104,126.19,126.17,0.05208692]
[1741780087227,0.05301104,126.19,126.17,7.97898692]
[1741780088033,0.05301104,126.19,126.18,7.9266]
[1741780088634,18.3054773,126.25,126.21,7.9244]
[1741780088830,18.3054773,126.25,126.17,31.26]
[1741780089729,0.05390609,126.22,126.2,0.05861177]
[1741780090033,0.05390609,126.22,126.21,7.9247]
[1741780090234,0.05390609,126.22,126.2,0.05861177]
[1741780090536,0.05390609,126.22,126.2,7.98351177]
[1741780091632,0.05390609,126.22,126.2,0.05861177]
[1741780091833,7.97820609,126.22,126.2,0.05861177]
[1741780092031,0.05390609,126.22,126.2,0.05861177]
[1741780092234,26.2301773,126.21,126.2,0.05861177]
[1741780093438,7.9247,126.21,126.2,0.05861177]
[1741780093841,7.9269,126.18,126.15,11.9801]
[1741780094539,7.9262,126.19,126.16,7.9278]
[1741780094734,18.3054773,126.23,126.15,4.0519]
[1741780094933,0.06051878,126.19,126.16,0.05866734]
[1741780095141,7.9272,126.17,126.16,0.05866734]
[1741780103543,18.36599608,126.19,126.16,0.05866734]
[1741780103544,0.06051878,126.19,126.16,0.05866734]
[1741780103742,51.01925189,126.26,126.17,31.24]
[1741780103939,4.0456,126.25,126.17,31.24]
[1741780104145,18.3054773,126.24,126.17,31.24]
[1741780104745,7.9237,126.23,126.17,39.1667]
[1741780104947,0.06002885,126.22,126.19,0.05461656]
[1741780105550,0.06002885,126.22,126.2,7.925]
[1741780105952,0.06002885,126.22,126.2,7.9253]
[1741780107053,0.06002885,126.22,126.21,7.9247]
[1741780110454,49.5454773,126.28,126.2,31.24]
[1741780110648,7.921,126.27,126.23,7.9229]
[1741780111158,49.5454773,126.28,126.2,31.24]
[1741780111348,57.4661773,126.28,126.24,7.9225]
[1741780111553,49.5454773,126.28,126.24,7.9225]
[1741780111754,0.05910829,126.27,126.25,0.05112652]
[1741780111954,7.98000829,126.27,126.25,0.05112652]
[1741780112256,0.05910829,126.27,126.25,0.05112652]
[1741780112758,7.9215,126.26,126.25,0.05112652]
[1741780113559,0.05910829,126.27,126.25,0.05112652]
[1741780113560,7.98040829,126.27,126.25,0.05112652]
[1741780114154,0.05910829,126.27,126.25,0.05112652]
[1741780114362,7.9215,126.26,126.25,0.05112652]
[1741780116462,18.3054773,126.26,126.19,37.4139]
[1741780116662,7.9239,126.23,126.19,37.4139]
[1741780116854,7.9239,126.23,126.2,7.925]
[1741780117053,18.3054773,126.26,126.2,7.925]
[1741780117254,18.3054773,126.26,126.19,37.4139]
[1741780117452,18.3054773,126.26,126.21,7.9244]
[1741780117654,0.05717628,126.24,126.21,7.98111524]
[1741780117960,7.98027628,126.24,126.21,7.98111524]
[1741780118965,7.9234,126.23,126.21,0.05671524]
[1741780119162,0.05717628,126.24,126.21,0.05671524]
[1741780119561,7.9241,126.22,126.21,0.05671524]
[1741780120161,0.05717628,126.24,126.21,0.05671524]
[1741780120368,7.9238,126.23,126.21,7.98141524]
[1741780120566,0.05717628,126.24,126.21,7.98141524]
[1741780120962,0.05717628,126.24,126.21,0.05671524]
[1741780121663,7.98027628,126.24,126.21,7.98091524]
[1741780122364,0.05717628,126.24,126.21,0.05671524]
[1741780122569,7.9241,126.22,126.21,0.05671524]
[1741780123768,7.9238,126.23,126.21,0.05671524]
[1741780123963,0.05717628,126.24,126.21,0.05671524]
[1741780124566,7.9241,126.22,126.21,0.05671524]
[1741780126477,0.05717628,126.24,126.21,0.05671524]
[1741780126770,7.9238,126.23,126.21,0.05671524]
[1741780126972,0.05717628,126.24,126.21,0.05671524]
[1741780127173,7.9241,126.22,126.21,0.05671524]
[1741780127973,0.05717628,126.24,126.21,0.05671524]
[1741780128173,7.9237,126.23,126.21,0.05671524]
[1741780129871,19.69957717,126.24,126.21,0.05671524]
[1741780130173,11.77637717,126.24,126.21,7.98111524]
[1741780130373,11.77637717,126.24,126.21,0.05671524]
[1741780131080,7.9238,126.23,126.21,0.05671524]
[1741780131778,7.9241,126.22,126.21,0.05671524]
[1741780132677,19.64330089,126.22,126.21,0.05671524]
[1741780134883,7.9241,126.22,126.21,0.05671524]
[1741780135186,7.9237,126.23,126.21,0.05671524]
[1741780136381,7.9241,126.22,126.21,0.05671524]
[1741780137989,7.9237,126.23,126.21,0.05671524]
[1741780140189,15.79317717,126.24,126.21,0.05671524]
[1741780140389,7.9241,126.22,126.21,0.05671524]
[1741780141782,19.64330089,126.22,126.21,0.05671524]
[1741780144186,7.9241,126.22,126.21,0.05671524]
[1741780144387,19.64300089,126.23,126.21,0.05671524]